fUST/lending_fUST_20240408
["ID","MTS","AMOUNT","RATE_DAILY","PERIOD"]
[321865841,1712574648638,-500.0,0.00061095,120]
[321865843,1712574648647,-2464.34,0.00061095,2]
[321865845,1712574648656,-1000.0,0.00061095,120]
[321865846,1712574648665,-500.0,0.00061095,120]
[321865848,1712574648675,-500.0,0.00061095,120]
[321865850,1712574648683,-500.0,0.00061095,120]
[321865851,1712574648693,-500.0,0.00061095,120]
[321865853,1712574648702,-500.0,0.00061095,7]
[321865855,1712574648711,-500.0,0.00061095,120]
[321865856,1712574648720,-500.0,0.00061095,120]
[321865858,1712574648729,-500.0,0.00061095,120]
[321865859,1712574648738,-500.0,0.00061095,120]
[321865861,1712574648747,-648.15,0.00061095,120]
[321865862,1712574648756,-500.0,0.00061095,120]
[321865864,1712574648765,-500.0,0.00061095,120]
[321865865,1712574648774,-500.0,0.00061095,120]
[321865867,1712574648783,-500.0,0.00061095,120]
[321865869,1712574648792,-500.0,0.00061095,120]
[321865870,1712574648801,-769.77,0.00061095,120]
[321865872,1712574648810,-198.88464925,0.00061095,120]
[321865874,1712574648819,-500.0,0.00061095,120]
[321865875,1712574648828,-500.0,0.00061095,120]
[321865877,1712574648838,-505.27380173,0.00061095,120]
[321865878,1712574648846,-500.0,0.00061095,120]
[321865880,1712574648855,-500.0,0.00061095,120]
[321865882,1712574648864,-500.0,0.00061095,120]
[321865883,1712574648872,-500.0,0.00061095,120]
[321865885,1712574648881,-516.55192565,0.00061095,120]
[321865887,1712574648890,-500.0,0.00061095,120]
[321865888,1712574648900,-572.03,0.00061095,120]
[321865890,1712574648909,-500.0,0.00061095,120]
[321865891,1712574648919,-538.6220857,0.00061095,120]
[321865893,1712574648928,-500.0,0.00061095,120]
[321865895,1712574648937,-500.0,0.00061095,120]
[321865896,1712574648946,-500.0,0.00061095,120]
[321865898,1712574648954,-508.40863394,0.00061095,120]
[321865899,1712574648964,-500.0,0.00061095,120]
[321865901,1712574648973,-500.0,0.00061095,120]
[321865903,1712574648981,-500.0,0.00061095,120]
[321865904,1712574648990,-500.66962116,0.00061095,120]
[321865906,1712574648999,-3561.94,0.00061095,90]
[321865908,1712574649008,-500.0,0.00061095,120]
[321865909,1712574649020,-500.0,0.00061095,120]
[321865911,1712574649029,-500.0,0.00061095,120]
[321865913,1712574649038,-500.0,0.00061095,120]
[321865914,1712574649047,-500.0,0.00061095,120]
[321865916,1712574649056,-500.0,0.00061095,120]
[321865917,1712574649065,-1002.74,0.00061095,120]
[321865919,1712574649074,-4639.34,0.00061095,120]
[321865921,1712574649083,-500.0,0.00061095,120]
[321865922,1712574649092,-2333.33,0.00061095,120]
[321865924,1712574649101,-566.24,0.00061095,120]
[321865925,1712574649110,-773.11,0.00061095,120]
[321865927,1712574649119,-500.0,0.00061095,21]
[321865929,1712574649128,-2580.52,0.00061095,120]
[321865930,1712574649137,-500.0,0.00061095,120]
[321865932,1712574649146,-500.0,0.00061095,120]
[321865934,1712574649155,-500.0,0.00061095,120]
[321865935,1712574649164,-1143.2,0.00061095,120]
[321865937,1712574649173,-500.0,0.00061095,120]
[321865938,1712574649182,-500.0,0.00061095,120]
[321865940,1712574649191,-613.04,0.00061095,120]
[321865942,1712574649200,-500.0,0.00061095,120]
[321865943,1712574649209,-500.0,0.00061095,120]
[321865945,1712574649218,-500.0,0.00061095,120]
[321865947,1712574649227,-798.63,0.00061095,120]
[321865948,1712574649235,-938.95,0.00061095,120]
[321865950,1712574649244,-500.0,0.00061095,120]
[321865951,1712574649253,-500.0,0.00061095,120]
[321865953,1712574649263,-500.0,0.00061095,120]
[321865955,1712574649272,-505.01900359,0.00061095,120]
[321865956,1712574649281,-500.0,0.00061095,120]
[321865958,1712574649290,-500.0,0.00061095,120]
[321865960,1712574649299,-500.0,0.00061095,120]
[321865961,1712574649308,-500.0,0.00061095,120]
[321865963,1712574649317,-560.59,0.00061095,120]
[321865965,1712574649326,-500.0,0.00061095,120]
[321865966,1712574649335,-500.0,0.00061095,120]
[321865968,1712574649344,-500.0,0.00061095,120]
[321865969,1712574649354,-500.0,0.00061095,120]
[321865971,1712574649363,-500.0,0.00061095,120]
[321865973,1712574649371,-1221.69,0.00061095,120]
[321865974,1712574649380,-500.0,0.00061095,120]
[321865976,1712574649390,-500.0,0.00061095,120]
[321865978,1712574649399,-500.0,0.00061095,120]
[321865979,1712574649407,-500.0,0.00061095,120]
[321865981,1712574649416,-500.0,0.00061095,120]
[321865982,1712574649425,-500.0,0.00061095,120]
[321865984,1712574649434,-500.0,0.00061095,120]
[321865986,1712574649443,-337.03859997,0.00061095,120]
[321865987,1712574649452,-500.0,0.00061095,120]
[321865989,1712574649462,-500.0,0.00061095,120]
[321865991,1712574649471,-589.17865615,0.00061095,120]
[321865992,1712574649480,-632.07,0.00061095,120]
[321865994,1712574649489,-641.4,0.00061095,120]
[321865995,1712574649498,-561.41912508,0.00061095,120]
[321865997,1712574649508,-283.54400454,0.00061095,120]
[321865999,1712574649522,-500.0,0.00061095,120]
[321866000,1712574649531,-500.0,0.00061095,120]
[321866002,1712574649540,-500.0,0.00061095,120]
[321866004,1712574649550,-500.0,0.00061095,120]
[321866005,1712574649559,-500.0,0.00061095,120]
[321866007,1712574649568,-500.0,0.00061095,120]
[321866009,1712574649577,-500.0,0.00061095,120]
[321866010,1712574649587,-152.08139804,0.00061095,120]
[321866012,1712574649597,-500.0,0.00061095,120]
[321866014,1712574649605,-1145.83,0.00061095,120]
[321866015,1712574649615,-500.0,0.00061095,120]
[321866017,1712574649624,-500.0,0.00061095,120]
[321866018,1712574649633,-500.0,0.00061095,120]
[321866020,1712574649642,-500.0,0.00061095,120]
[321866022,1712574649651,-500.0,0.00061095,120]
[321866023,1712574649660,-1055.32,0.00061095,120]
[321866025,1712574649669,-500.0,0.00061095,120]
[321866027,1712574649679,-500.0,0.00061095,120]
[321866028,1712574649688,-500.0,0.00061095,120]
[321866034,1712574649757,-500.0,0.00061095,120]
[321866036,1712574649767,-728.67,0.00061095,120]
[321866037,1712574649776,-500.0,0.00061095,120]
[321866039,1712574649786,-500.0,0.00061095,120]
[321866040,1712574649796,-500.0,0.00061095,120]
[321866042,1712574649805,-500.0,0.00061095,120]
[321866044,1712574649814,-500.0,0.00061095,120]
[321866045,1712574649823,-500.0,0.00061095,120]
[321866047,1712574649832,-500.0,0.00061095,120]
[321866049,1712574649841,-500.0,0.00061095,120]
[321866050,1712574649851,-500.0,0.00061095,120]
[321866052,1712574649860,-500.0,0.00061095,120]
[321866053,1712574649869,-500.0,0.00061095,120]
[321866055,1712574649878,-500.0,0.00061095,120]
[321866057,1712574649886,-509.54290519,0.00061095,120]
[321866058,1712574649896,-500.0,0.00061095,120]
[321866060,1712574649905,-500.0,0.00061095,120]
[321866062,1712574649914,-5837.3,0.00061095,120]
[321866063,1712574649923,-500.0,0.00061095,120]
[321866065,1712574649933,-500.0,0.00061095,120]
[321866067,1712574649942,-603.63,0.00061095,120]
[321866068,1712574649951,-552.92,0.00061095,120]
[321866070,1712574649961,-500.0,0.00061095,120]
[321866071,1712574649970,-521.8,0.00061095,60]
[321866073,1712574649979,-500.0,0.00061095,120]
[321866075,1712574649988,-365.62153107,0.00061095,120]
[321866077,1712574649997,-500.0,0.00061095,120]
[321866079,1712574650006,-500.0,0.00061095,120]
[321866081,1712574650017,-517.1451475,0.00061095,120]
[321866083,1712574650026,-500.0,0.00061095,120]
[321866084,1712574650035,-989.63,0.00061095,120]
[321866085,1712574650044,-500.0,0.00061095,120]
[321866086,1712574650053,-1900.0,0.00061095,120]
[321866087,1712574650062,-500.0,0.00061095,120]
[321866088,1712574650071,-500.0,0.00061095,120]
[321866089,1712574650080,-500.0,0.00061095,120]
[321866090,1712574650089,-2982.49,0.00061095,120]
[321866091,1712574650097,-782.0,0.00061095,120]
[321866092,1712574650106,-500.0,0.00061095,120]
[321866093,1712574650116,-60.89381946,0.00061095,120]
[321866094,1712574650138,-439.10618054,0.00061095,120]
[321866095,1712574650147,-500.0,0.00061095,120]
[321866096,1712574650156,-500.0,0.00061095,120]
[321866097,1712574650165,-1836.27,0.00061095,120]
[321866098,1712574650174,-2448.09,0.00061095,120]
[321866099,1712574650183,-2093.71,0.00061095,120]
[321866100,1712574650191,-500.0,0.00061095,120]
[321866101,1712574650200,-166.666666,0.00061137,2]
[321866102,1712574650209,-344.87440932,0.000616,120]
[321866103,1712574650218,-165.59015419,0.00061817,2]
[321866104,1712574650227,-449.22354751,0.00061913,120]
[321866105,1712574650238,-154.04645249,0.00061913,120]
[321866106,1712574650247,-600.20628759,0.00061915,120]
[321866107,1712574650258,-1704.77371241,0.00061915,120]
[321866108,1712574650267,-603.27,0.00061916,120]
[321866109,1712574650276,-499.94168466,0.00061916,120]
[321866110,1712574650287,-103.32831534,0.00061916,120]
[321866111,1712574650296,-2304.98,0.00061916,120]
[321866112,1712574650305,-2304.98,0.00061916,120]
[321866113,1712574650314,-3508.67,0.00061916,120]
[321866115,1712574650324,-707.84,0.00061917,120]
[321866116,1712574650334,-500.0,0.00061917,120]
[321866118,1712574650344,-500.0,0.00061917,120]
[321866119,1712574650353,-500.0,0.00061917,120]
[321866120,1712574650363,-500.0,0.00061917,120]
[321866122,1712574650372,-500.0,0.00061917,120]
[321866124,1712574650382,-500.0,0.00061917,120]
[321866126,1712574650394,-383.28304079,0.00061917,120]
[321866128,1712574650405,-500.0,0.00061917,120]
[321866130,1712574650414,-500.0,0.00061917,120]
[321866132,1712574650423,-500.0,0.00061917,120]
[321866134,1712574650432,-527.85095803,0.00061917,120]
[321866136,1712574650442,-500.0,0.00061917,120]
[321866138,1712574650452,-500.0,0.00061917,120]
[321866140,1712574650461,-500.0,0.00061917,120]
[321866142,1712574650470,-554.71,0.00061917,120]
[321866144,1712574650479,-500.0,0.00061917,120]
[321866146,1712574650488,-500.0,0.00061917,120]
[321866148,1712574650497,-1385.35,0.00061917,120]
[321866150,1712574650507,-500.0,0.00061917,120]
[321866152,1712574650522,-1821.22,0.00061917,120]
[321866154,1712574650531,-500.0,0.00061917,120]
[321866156,1712574650540,-500.0,0.00061917,120]
[321866158,1712574650550,-628.31085336,0.00061917,120]
[321866160,1712574650559,-406.7568325,0.00061917,120]
[321866163,1712574650571,-173.2631675,0.00061917,120]
[321866165,1712574650580,-500.0,0.00061917,120]
[321866167,1712574650589,-500.0,0.00061917,120]
[321866169,1712574650599,-1438.93,0.00061917,120]
[321866171,1712574650608,-730.86,0.00061917,120]
[321866172,1712574650617,-500.0,0.00061917,120]
[321866174,1712574650626,-500.0,0.00061917,120]
[321866176,1712574650636,-500.0,0.00061917,120]
[321866178,1712574650646,-500.0,0.00061917,120]
[321866180,1712574650655,-508.13343982,0.00061917,120]
[321866182,1712574650664,-583.65335397,0.00061917,120]
[321866184,1712574650674,-500.0,0.00061917,120]
[321866187,1712574650683,-875.97,0.00061917,120]
[321866189,1712574650693,-500.0,0.00061917,120]
[321866190,1712574650702,-500.0,0.00061917,120]
[321866193,1712574650711,-500.0,0.00061917,7]
[321866194,1712574650720,-500.0,0.00061917,120]
[321866196,1712574650730,-500.0,0.00061917,120]
[321866198,1712574650739,-541.7,0.00061917,120]
[321866200,1712574650748,-500.0,0.00061917,120]
[321866202,1712574650758,-1771.04035223,0.00061917,120]
[321866215,1712574650868,-500.0,0.00060273,120]
[321866217,1712574650878,-500.0,0.00061095,120]
[321866219,1712574650887,-158.45964777,0.00061917,120]
[321866221,1712574650896,-500.0,0.00061917,120]
[321866223,1712574650906,-500.0,0.00061917,120]
[321866225,1712574650915,-500.0,0.00061917,120]
[321866227,1712574650924,-500.0,0.00061917,120]
[321866229,1712574650933,-500.0,0.00061917,120]
[321866231,1712574650942,-500.0,0.00061917,120]
[321866233,1712574650952,-578.87,0.00061917,120]
[321866235,1712574650961,-500.0,0.00061917,120]
[321866237,1712574650970,-2464.34,0.00061917,2]
[321866239,1712574650979,-1000.0,0.00061917,120]
[321866241,1712574650988,-500.0,0.00061917,120]
[321866243,1712574650998,-561.04,0.00061917,120]
[321866245,1712574651007,-500.0,0.00061917,120]
[321866247,1712574651016,-500.0,0.00061917,120]
[321866249,1712574651025,-160.02225986,0.00061917,120]
[321866341,1712574652953,859.00228183,0.00037237,4]
[321866356,1712574668081,168.980999,0.00031228,2]
[321866357,1712574668948,168.980999,0.00032009,2]
[321866358,1712574669268,168.980999,0.00032789,2]
[321866365,1712575546102,-748.809147,0.00034302,2]
[321866366,1712575546122,-154.87609912,0.00034862,4]
[321866367,1712575546141,-157.69224403,0.00034862,4]
[321866371,1712575747121,-211.10073738,0.00027394,2]
[321866372,1712575747141,-407.59656825,0.00027394,2]
[321866373,1712575747161,-154.90705577,0.00027394,2]
[321866374,1712575747182,-154.90705577,0.00027394,2]
[321866375,1712575747202,-242.6744587,0.00027395,2]
[321866376,1712575747222,-277.197203,0.00027397,2]
[321866377,1712575747245,-277.197203,0.00033165,2]
[321866378,1712575747266,-464.50545485,0.00034059,4]
[321866379,1712575747285,-766.9938411,0.00034061,2]
[321866380,1712575747305,-171.282353,0.00034068,2]
[321866381,1712575747323,-3537.57525826,0.00034862,15]
[321866382,1712575747342,-200.0,0.00034864,2]
[321866383,1712575747362,-400.0,0.00034998,2]
[321866384,1712575747383,-6854.02678516,0.00035,4]
[321866385,1712575747402,-668.64742128,0.00035308,4]
[321866386,1712575747422,-294.44711976,0.00035309,4]
[321866387,1712575747444,-167.48685813,0.0003531,7]
[321866388,1712575747464,-162.0,0.0003531,7]
[321866389,1712575747484,-24522.7940068,0.00035311,2]
[321866390,1712575747506,-337.53972611,0.00035396,7]
[321866391,1712575747525,-737.0748186,0.00035496,2]
[321866392,1712575747545,-186.328645,0.00035725,2]
[321866393,1712575747566,-221.128656,0.00036986,120]
[321866394,1712575747586,-364.35123334,0.00037736,15]
[321866395,1712575747608,-41151.51379592,0.00037737,4]
[321866396,1712575747627,-3788.21649542,0.00037743,4]
[321866397,1712575747646,-980.21162756,0.00037746,4]
[321866398,1712575747665,-712.98607825,0.00038,4]
[321866399,1712575747685,-560.0,0.00038498,3]
[321866400,1712575747706,-277.197203,0.00038933,2]
[321866401,1712575747726,-1905.61778224,0.00039729,4]
[321866402,1712575747745,-2773.31834083,0.0003973,4]
[321866403,1712575747764,-155.75207543,0.00039733,4]
[321866404,1712575747784,-270.33183749,0.00039733,4]
[321866405,1712575747804,-484.59961287,0.00039733,4]
[321866406,1712575747825,-171.57194256,0.00039733,4]
[321866407,1712575747849,-182.83279172,0.00039733,4]
[321866408,1712575747869,-283.10912685,0.00039733,4]
[321866409,1712575747889,-483.60427901,0.00039733,4]
[321866410,1712575747908,-156.30461424,0.00039733,4]
[321866411,1712575747931,-166.90512393,0.00039733,4]
[321866412,1712575747951,-158.82436113,0.00039733,4]
[321866413,1712575747970,-142.6526067,0.00039733,4]
[321866414,1712575752105,-595.96032213,0.00035,2]
[321866415,1712575754335,-189.40327276,0.00039733,4]
[321866416,1712575754356,-1404.24119242,0.00039733,4]
[321866417,1712575754388,-1623.71113824,0.00039733,4]
[321866418,1712575754410,-2488.09223429,0.00039734,4]
[321866419,1712575754431,-27605.716,0.00040009,30]
[321866420,1712575754452,-230.17061105,0.0004013,4]
[321866421,1712575754472,-658.68250455,0.00040131,4]
[321866422,1712575754491,-676.24349443,0.00040131,2]
[321866423,1712575754513,-453.72611502,0.00040131,4]
[321866424,1712575754532,-1034.29728732,0.00040131,4]
[321866425,1712575754553,-155.75518289,0.00040131,4]
[321866426,1712575754575,-561.14487452,0.00040131,4]
[321866427,1712575754594,-520.87496,0.00040131,4]
[321866428,1712575754615,-183.43126095,0.00040132,4]
[321866429,1712575754635,-610.12606589,0.00040132,4]
[321866430,1712575754655,-166.666666,0.00041096,2]
[321866431,1712575754676,-500.0,0.00041096,31]
[321866432,1712575754696,-231.84316899,0.00041096,31]
[321866433,1712575754718,-500.0,0.00041096,31]
[321866434,1712575754740,-500.0,0.00041096,31]
[321866435,1712575754761,-500.0,0.00041096,31]
[321866436,1712575754780,-188.19613238,0.00041275,2]
[321866437,1712575754801,-753.73047107,0.00041374,4]
[321866438,1712575754820,-41.28105672,0.00041741,120]
[321866439,1712575761188,-257.55881866,0.00041546,4]
[321866440,1712575761209,-306.11929807,0.00041546,4]
[321866441,1712575761230,-260.71894328,0.00041741,120]
[321866442,1712575761250,-300.0,0.00041741,120]
[321866443,1712575761270,-166.666666,0.00042058,2]
[321866444,1712575762265,218.10411422,0.00041546,4]
[321866445,1712575762629,17.44596321,0.00041546,4]
[321866446,1712575770097,-746.72251825,0.00041546,4]
[321866447,1712575770257,-783.0,0.00042348,3]
[321866448,1712575770286,-166.666666,0.00043019,2]
[321866449,1712575770309,-221.128656,0.00043151,120]
[321866450,1712575770331,-166.666666,0.00043981,2]
[321866453,1712575809533,149.14145484,0.00037909,2]
[321866503,1712575832291,-415.64295977,0.00037909,2]
[321866505,1712575832300,-327.15056696,0.00041547,2]
[321866507,1712575832309,-7771.73590887,0.00041547,2]
[321866509,1712575832318,-564.78441461,0.00042909,2]
[321866511,1712575832327,-221.128656,0.00044246,120]
[321866513,1712575832336,-550.0,0.00044497,3]
[321866515,1712575832345,-6854.02678516,0.00044498,4]
[321866517,1712575832354,-382.87486295,0.00044499,4]
[321866519,1712575832363,-595.96032213,0.00044499,2]
[321866521,1712575832372,-190.68741533,0.00044499,2]
[321866523,1712575832381,-309.16582743,0.00044499,4]
[321866525,1712575832390,-6700.0,0.000445,30]
[321866527,1712575832399,-277.197203,0.00044701,2]
[321866529,1712575832408,-166.666666,0.00044942,2]
[321866531,1712575832418,-166.666666,0.00045904,2]
[321866532,1712575832427,-161.0,0.00047,90]
[321866535,1712575832436,-764.16848146,0.00047499,2]
[321866537,1712575832445,-20814.61332636,0.000475,2]
[321866538,1712575832455,-161.0,0.00048904,90]
[321866539,1712575832464,-770.0,0.00048946,3]
[321866540,1712575832473,-2000.0,0.000497,2]
[321866542,1712575832483,-13543.32392113,0.000498,120]
[321866544,1712575832492,-8247.26191011,0.0005,60]
[321866546,1712575832502,-277.197203,0.00050469,2]
[321866548,1712575832512,-8246.0,0.00051,60]
[321866550,1712575832520,-748.809147,0.00051453,2]
[321866551,1712575832530,-1351.52191411,0.0005346,77]
[321866553,1712575832539,-974.0,0.00053841,10]
[321866554,1712575832548,-913.03136204,0.00054986,4]
[321866555,1712575832557,-150.87929656,0.00055154,2]
[321866556,1712575832566,-301.75859313,0.00056081,4]
[321866557,1712575832576,-277.197203,0.00056236,2]
[321866558,1712575832586,-154.9690062,0.00060272,12]
[321866559,1712575832595,-189.47600034,0.00060272,120]
[321866560,1712575832605,-18333.78178786,0.00060273,61]
[321866561,1712575832614,-500.0,0.00060273,120]
[321866562,1712575832623,-213.02071615,0.00060273,120]
[321866563,1712575832632,-500.0,0.00060273,120]
[321866564,1712575832641,-500.0,0.00060273,120]
[321866565,1712575832650,-500.0,0.00060273,120]
[321866566,1712575832659,-500.0,0.00060273,120]
[321866567,1712575832669,-500.0,0.00060273,120]
[321866569,1712575832678,-543.2206279,0.00060273,120]
[321866571,1712575832687,-1593.57,0.00060273,120]
[321866572,1712575832697,-500.0,0.00060273,120]
[321866573,1712575832706,-500.0,0.00060273,120]
[321866574,1712575832716,-500.0,0.00060273,120]
[321866575,1712575832725,-500.0,0.00060273,120]
[321866576,1712575832735,-519.05745472,0.00060273,120]
[321866577,1712575832746,-500.0,0.00060273,120]
[321866578,1712575832755,-500.0,0.00060273,7]
[321866579,1712575832765,-828.98,0.00060273,120]
[321866581,1712575832774,-500.0,0.00060273,120]
[321866583,1712575832784,-2156.3,0.00060273,2]
[321866584,1712575832794,-500.0,0.00060273,120]
[321866587,1712575832884,-500.0,0.00060273,120]
[321866588,1712575832894,-500.0,0.00060273,120]
[321866589,1712575832905,-500.0,0.00060273,120]
[321866590,1712575832915,-500.0,0.00060273,120]
[321866591,1712575832924,-500.0,0.00060273,120]
[321866592,1712575832934,-199.56409422,0.00060273,120]
[321866593,1712575832944,-500.0,0.00060273,120]
[321866594,1712575832953,-500.0,0.00060273,120]
[321866595,1712575832965,-500.0,0.00060273,120]
[321866596,1712575832975,-500.0,0.00060273,120]
[321866597,1712575832984,-500.0,0.00060273,7]
[321866598,1712575832994,-500.0,0.00060273,120]
[321866599,1712575833004,-500.16,0.00060273,120]
[321866600,1712575833013,-500.0,0.00060273,120]
[321866601,1712575833023,-500.0,0.00060273,120]
[321866602,1712575833032,-500.0,0.00060273,120]
[321866603,1712575833041,-500.0,0.00060273,120]
[321866604,1712575833050,-1000.0,0.00060273,120]
[321866605,1712575833059,-500.0,0.00060273,120]
[321866606,1712575833069,-500.0,0.00060273,120]
[321866607,1712575833078,-500.0,0.00060273,120]
[321866608,1712575833088,-500.0,0.00060273,120]
[321866609,1712575833097,-500.0,0.00060273,120]
[321866610,1712575833106,-617.20580798,0.00060273,120]
[321866611,1712575833115,-500.0,0.00060273,120]
[321866612,1712575833124,-500.0,0.00060273,120]
[321866613,1712575833133,-500.0,0.00060273,120]
[321866614,1712575833143,-500.0,0.00060273,120]
[321866615,1712575833151,-1212.18,0.00060273,120]
[321866616,1712575833160,-624.45,0.00060273,120]
[321866617,1712575833169,-500.0,0.00060273,120]
[321866618,1712575833178,-500.0,0.00060273,120]
[321866619,1712575833187,-500.0,0.00060273,120]
[321866620,1712575833195,-500.0,0.00060273,120]
[321866621,1712575833204,-500.0,0.00060273,120]
[321866622,1712575833213,-500.0,0.00060273,120]
[321866623,1712575833223,-905.28,0.00060273,120]
[321866624,1712575833232,-516.45355752,0.00060273,120]
[321866625,1712575833241,-500.0,0.00060273,120]
[321866626,1712575833253,-500.0,0.00060273,120]
[321866627,1712575833262,-500.0,0.00060273,120]
[321866628,1712575833272,-639.5,0.00060273,120]
[321866629,1712575833281,-500.0,0.00060273,120]
[321866630,1712575833291,-500.0,0.00060273,120]
[321866631,1712575833300,-500.0,0.00060273,120]
[321866632,1712575833309,-500.0,0.00060273,120]
[321866633,1712575833318,-519.05,0.00060273,120]
[321866634,1712575833327,-513.19683372,0.00060273,120]
[321866635,1712575833336,-500.0,0.00060273,120]
[321866636,1712575833344,-500.0,0.00060273,120]
[321866637,1712575833353,-500.0,0.00060273,120]
[321866638,1712575833362,-500.0,0.00060273,120]
[321866639,1712575833371,-500.0,0.00060273,120]
[321866640,1712575833380,-500.0,0.00060273,120]
[321866641,1712575833390,-500.0,0.00060273,120]
[321866642,1712575833398,-520.90657266,0.00060273,120]
[321866643,1712575833407,-500.0,0.00060273,120]
[321866644,1712575833416,-500.0,0.00060273,120]
[321866645,1712575833425,-513.87,0.00060273,120]
[321866646,1712575833436,-500.0,0.00060273,120]
[321866647,1712575833445,-518.41033469,0.00060273,120]
[321866648,1712575833454,-500.0,0.00060273,120]
[321866649,1712575833463,-500.0,0.00060273,120]
[321866650,1712575833472,-500.0,0.00060273,120]
[321866651,1712575833481,-515.87322761,0.00060273,120]
[321866652,1712575833491,-500.0,0.00060273,120]
[321866653,1712575833504,-500.0,0.00060273,120]
[321866654,1712575833513,-500.0,0.00060273,120]
[321866655,1712575833522,-500.0,0.00060273,120]
[321866656,1712575833531,-500.0,0.00060273,120]
[321866657,1712575833541,-500.0,0.00060273,120]
[321866658,1712575833550,-500.0,0.00060273,120]
[321866659,1712575833559,-500.0,0.00060273,120]
[321866660,1712575833569,-500.0,0.00060273,120]
[321866661,1712575833578,-967.37,0.00060273,120]
[321866662,1712575833587,-500.0,0.00060273,120]
[321866663,1712575833596,-500.0,0.00060273,120]
[321866664,1712575833605,-1259.07,0.00060273,120]
[321866665,1712575833614,-500.0,0.00060273,120]
[321866666,1712575833624,-500.0,0.00060273,120]
[321866667,1712575833633,-500.0,0.00060273,120]
[321866668,1712575833642,-500.0,0.00060273,120]
[321866669,1712575833653,-500.0,0.00060273,120]
[321866670,1712575833662,-500.0,0.00060273,120]
[321866671,1712575833671,-1750.81,0.00060273,120]
[321866672,1712575833680,-418.11304269,0.00060273,120]
[321866673,1712575833689,-500.0,0.00060273,120]
[321866674,1712575833698,-500.0,0.00060273,120]
[321866675,1712575833707,-500.0,0.00060273,120]
[321866676,1712575833716,-524.03462762,0.00060273,120]
[321866677,1712575833726,-500.0,0.00060273,120]
[321866678,1712575833736,-500.0,0.00060273,120]
[321866679,1712575833747,-500.0,0.00060273,120]
[321866680,1712575833757,-513.62908809,0.00060273,120]
[321866681,1712575833769,-500.0,0.00060273,120]
[321866682,1712575833778,-500.0,0.00060273,120]
[321866683,1712575833787,-625.04,0.00060273,120]
[321866684,1712575833796,-500.0,0.00060273,120]
[321866685,1712575833806,-527.67,0.00060273,120]
[321866686,1712575833816,-500.0,0.00060273,120]
[321866687,1712575833826,-420.36171624,0.00060273,120]
[321866688,1712575833836,-472.21653685,0.00060273,120]
[321866689,1712575833846,-500.0,0.00060273,120]
[321866690,1712575833858,-500.0,0.00060273,120]
[321866691,1712575833867,-500.0,0.00060273,120]
[321866692,1712575833877,-500.0,0.00060273,120]
[321866693,1712575833886,-500.0,0.00060273,120]
[321866694,1712575833898,-500.0,0.00060273,120]
[321866695,1712575833918,-500.0,0.00060273,120]
[321866696,1712575833929,-500.0,0.00060273,120]
[321866697,1712575833939,-500.0,0.00060273,120]
[321866698,1712575833949,-518.72,0.00060273,120]
[321866699,1712575833960,-500.0,0.00060273,120]
[321866700,1712575833971,-340.53092421,0.00060273,120]
[321866701,1712575833980,-500.0,0.00060273,120]
[321866702,1712575833991,-500.0,0.00060273,120]
[321866703,1712575834003,-726.46,0.00060273,120]